fUST/lending_fUST_20241016
["ID","MTS","AMOUNT","RATE_DAILY","PERIOD"]
[340301659,1729009874456,-500.0,0.00036164,30]
[340301660,1729009874468,-500.0,0.00036164,30]
[340301661,1729009874479,-500.0,0.00036164,30]
[340301662,1729009874492,-500.0,0.00036164,30]
[340301663,1729009874504,-223.73648532,0.00036164,30]
[340301664,1729009874516,-500.0,0.00036164,30]
[340301665,1729009874528,-500.0,0.00036164,30]
[340301666,1729009874540,-500.0,0.00036164,30]
[340301667,1729009874553,-500.0,0.00036164,30]
[340301668,1729009874565,-500.0,0.00036164,30]
[340301669,1729009874578,-500.0,0.00036164,30]
[340301670,1729009874590,-500.0,0.00036164,30]
[340301671,1729009874602,-500.0,0.00036164,30]
[340301672,1729009874617,-501.08649142,0.00036164,30]
[340301673,1729009874628,-500.0,0.00036164,30]
[340301674,1729009874639,-500.0,0.00036164,30]
[340301675,1729009874650,-500.0,0.00036164,30]
[340301676,1729009874661,-500.0,0.00036164,30]
[340301677,1729009874673,-250.61483993,0.00036164,30]
[340301678,1729009874683,-501.43,0.00036164,30]
[340301679,1729009874695,-500.0,0.00036164,30]
[340301680,1729009874706,-516.42418884,0.00036164,30]
[340301681,1729009874717,-551.11,0.00036164,30]
[340301682,1729009874728,-539.52412827,0.00036164,30]
[340301683,1729009874741,-500.0,0.00036164,30]
[340301684,1729009874753,-500.0,0.00036164,30]
[340301685,1729009874765,-503.37859218,0.00036164,30]
[340301686,1729009874776,-500.0,0.00036164,30]
[340301687,1729009874789,-500.0,0.00036164,30]
[340301688,1729009874802,-500.0,0.00036164,30]
[340301689,1729009874814,-500.0,0.00036164,30]
[340301690,1729009874826,-597.70456221,0.00036164,30]
[340301691,1729009874839,-500.0,0.00036164,30]
[340301692,1729009874851,-500.0,0.00036164,30]
[340301693,1729009874864,-516.35413828,0.00036164,30]
[340301694,1729009874875,-598.02537093,0.00036164,30]
[340301695,1729009874886,-500.0,0.00036164,30]
[340301696,1729009874897,-500.0,0.00036164,30]
[340301697,1729009874907,-500.0,0.00036164,30]
[340301698,1729009874918,-500.0,0.00036164,30]
[340301699,1729009874929,-500.0,0.00036164,30]
[340301700,1729009874941,-500.0,0.00036164,30]
[340301701,1729009874953,-649.77,0.00036164,30]
[340301702,1729009874965,-500.0,0.00036164,30]
[340301703,1729009874976,-519.863861,0.00036164,30]
[340301704,1729009874988,-500.0,0.00036164,30]
[340301705,1729009874999,-500.0,0.00036164,30]
[340301706,1729009875011,-500.0,0.00036164,30]
[340301707,1729009875022,-500.0,0.00036164,30]
[340301708,1729009875035,-504.3585129,0.00036164,30]
[340301709,1729009875048,-500.0,0.00036164,30]
[340301710,1729009875060,-500.0,0.00036164,30]
[340301711,1729009875071,-515.31960738,0.00036164,30]
[340301712,1729009875082,-500.0,0.00036164,30]
[340301713,1729009875093,-799.26,0.00036164,30]
[340301714,1729009875104,-500.0,0.00036164,30]
[340301715,1729009875117,-500.0,0.00036164,30]
[340301716,1729009875131,-500.0,0.00036164,30]
[340301717,1729009875143,-500.0,0.00036164,30]
[340301718,1729009875154,-500.0,0.00036164,30]
[340301719,1729009875166,-500.0,0.00036164,30]
[340301720,1729009875177,-500.0,0.00036164,30]
[340301721,1729009875188,-526.22,0.00036164,30]
[340301722,1729009875199,-500.0,0.00036164,30]
[340301723,1729009875211,-500.0,0.00036164,30]
[340301724,1729009875223,-295.45896366,0.00036164,30]
[340301725,1729009875234,-500.0,0.00036164,30]
[340301726,1729009875246,-500.0,0.00036164,30]
[340301727,1729009875258,-500.0,0.00036164,30]
[340301728,1729009875270,-683.6,0.00036164,30]
[340301729,1729009875280,-500.0,0.00036164,30]
[340301730,1729009875291,-545.68180966,0.00036164,30]
[340301731,1729009875303,-571.26666721,0.00036164,30]
[340301732,1729009875314,-500.0,0.00036164,30]
[340301733,1729009875325,-500.0,0.00036164,30]
[340301734,1729009875336,-500.0,0.00036164,30]
[340301735,1729009875347,-500.0,0.00036164,30]
[340301736,1729009875361,-500.0,0.00036164,30]
[340301737,1729009875374,-500.0,0.00036164,30]
[340301738,1729009875384,-500.0,0.00036164,30]
[340301739,1729009875395,-500.0,0.00036164,30]
[340301740,1729009875406,-500.0,0.00036164,30]
[340301741,1729009875418,-200.76619893,0.00036164,30]
[340301742,1729009875429,-622.58125381,0.00036164,30]
[340301743,1729009875441,-313.73300472,0.00036164,30]
[340301744,1729009875452,-500.0,0.00036164,30]
[340301745,1729009875463,-500.0,0.00036164,30]
[340301746,1729009875474,-500.0,0.00036164,30]
[340301747,1729009875485,-521.41,0.00036164,30]
[340301748,1729009875496,-500.0,0.00036164,30]
[340301749,1729009875508,-500.0,0.00036164,30]
[340301750,1729009875519,-500.0,0.00036164,30]
[340301751,1729009875530,-397.65798379,0.00036164,30]
[340301752,1729009875543,-500.0,0.00036164,30]
[340301753,1729009875555,-500.0,0.00036164,30]
[340301754,1729009875566,-370.73271922,0.00036164,30]
[340301755,1729009875576,-500.0,0.00036164,30]
[340301756,1729009875588,-519.4438185,0.00036164,30]
[340301757,1729009875600,-500.0,0.00036164,30]
[340301758,1729009875615,-500.0,0.00036164,7]
[340301759,1729009875627,-500.0,0.00036164,30]
[340301760,1729009875645,-624.90251245,0.00036164,30]
[340301761,1729009875656,-500.0,0.00036164,30]
[340301762,1729009875900,-506.15500656,0.00036164,30]
[340301763,1729009875911,-500.0,0.00036164,30]
[340301764,1729009875921,-500.0,0.00036164,30]
[340301765,1729009875931,-500.0,0.00036164,30]
[340301766,1729009875941,-534.62257213,0.00036164,30]
[340301767,1729009875951,-500.0,0.00036164,30]
[340301768,1729009875961,-500.0,0.00036164,30]
[340301769,1729009875971,-500.0,0.00036164,30]
[340301770,1729009875984,-500.0,0.00036164,30]
[340301771,1729009875994,-500.0,0.00036164,30]
[340301772,1729009876004,-990.07,0.00036164,30]
[340301773,1729009876014,-500.0,0.00036164,30]
[340301774,1729009876024,-247.22630497,0.00036164,30]
[340301775,1729009876034,-658.7,0.00036164,30]
[340301776,1729009876044,-500.0,0.00036164,30]
[340301777,1729009876054,-500.0,0.00036164,30]
[340301778,1729009876064,-500.0,0.00036164,30]
[340301779,1729009876074,-500.0,0.00036164,30]
[340301780,1729009876083,-500.0,0.00036164,30]
[340301781,1729009876092,-3681.08,0.00036164,30]
[340301782,1729009876103,-500.0,0.00036164,30]
[340301783,1729009876117,-500.0,0.00036164,30]
[340301784,1729009876131,-500.0,0.00036164,30]
[340301785,1729009876141,-500.0,0.00036164,30]
[340301786,1729009876151,-500.0,0.00036164,30]
[340301787,1729009876164,-500.0,0.00036164,30]
[340301788,1729009876174,-500.0,0.00036164,30]
[340301789,1729009876185,-500.0,0.00036164,30]
[340301790,1729009876194,-500.0,0.00036164,30]
[340301791,1729009876206,-500.0,0.00036164,30]
[340301792,1729009876215,-500.0,0.00036164,30]
[340301793,1729009876225,-500.0,0.00036164,30]
[340301794,1729009876235,-1724.34,0.00036164,30]
[340301795,1729009876244,-500.0,0.00036164,30]
[340301796,1729009876254,-607.11963648,0.00036164,30]
[340301797,1729009876264,-500.0,0.00036164,30]
[340301798,1729009876274,-508.17349233,0.00036164,30]
[340301799,1729009876283,-535.50853423,0.00036164,30]
[340301800,1729009876293,-500.0,0.00036164,30]
[340301801,1729009876303,-500.0,0.00036164,30]
[340301802,1729009876313,-500.0,0.00036164,30]
[340301803,1729009876323,-500.0,0.00036164,30]
[340301804,1729009876333,-500.0,0.00036164,30]
[340301805,1729009876342,-500.0,0.00036164,30]
[340301806,1729009876352,-500.0,0.00036164,30]
[340301807,1729009876369,-500.0,0.00036164,30]
[340301808,1729009876379,-500.0,0.00036164,30]
[340301809,1729009876388,-761.67,0.00036164,30]
[340301810,1729009876398,-500.0,0.00036164,30]
[340301811,1729009876408,-500.0,0.00036164,2]
[340301812,1729009876418,-5876.9,0.00036164,30]
[340301813,1729009876428,-1121.68,0.00036164,30]
[340301814,1729009876438,-522.80669711,0.00036164,30]
[340301815,1729009876448,-500.0,0.00036164,30]
[340301816,1729009876458,-500.0,0.00036164,30]
[340301817,1729009876468,-169.13230535,0.00036164,30]
[340301818,1729009876477,-608.44886215,0.00036164,30]
[340301819,1729009876488,-500.0,0.00036164,30]
[340301820,1729009876498,-500.0,0.00036164,30]
[340301821,1729009876508,-500.0,0.00036164,30]
[340301822,1729009876518,-500.0,0.00036164,30]
[340301823,1729009876529,-278.76657316,0.00036164,30]
[340301824,1729009876539,-500.0,0.00036164,30]
[340301825,1729009876549,-500.0,0.00036164,30]
[340301826,1729009876559,-500.0,0.00036164,30]
[340301827,1729009876569,-500.0,0.00036164,30]
[340301828,1729009876579,-500.0,0.00036164,30]
[340301829,1729009876589,-500.0,0.00036164,30]
[340301830,1729009876600,-584.13,0.00036164,30]
[340301831,1729009876619,-500.0,0.00036164,30]
[340301832,1729009876628,-514.210291,0.00036164,30]
[340301833,1729009876637,-562.76649885,0.00036164,30]
[340301834,1729009876647,-500.0,0.00036164,30]
[340301835,1729009876657,-500.0,0.00036164,30]
[340301836,1729009876666,-500.0,0.00036164,30]
[340301837,1729009876676,-500.0,0.00036164,30]
[340301838,1729009876685,-500.0,0.00036164,30]
[340301839,1729009876695,-771.59,0.00036164,30]
[340301840,1729009876705,-500.0,0.00036164,30]
[340301841,1729009876714,-500.0,0.00036164,30]
[340301842,1729009876724,-500.0,0.00036164,30]
[340301843,1729009876734,-500.0,0.00036164,30]
[340301844,1729009876744,-500.0,0.00036164,30]
[340301845,1729009876753,-500.0,0.00036164,30]
[340301846,1729009876762,-500.0,0.00036164,30]
[340301847,1729009876773,-1991.97,0.00036164,30]
[340301848,1729009876782,-500.0,0.00036164,30]
[340301849,1729009876793,-539.76,0.00036164,30]
[340301850,1729009876803,-500.0,0.00036164,30]
[340301851,1729009876814,-500.0,0.00036164,30]
[340301852,1729009876824,-500.0,0.00036164,30]
[340301853,1729009876833,-500.0,0.00036164,30]
[340301854,1729009876843,-500.0,0.00036164,30]
[340301855,1729009876853,-633.15,0.00036164,30]
[340301856,1729009876870,-500.0,0.00036164,30]
[340301857,1729009876879,-754.14,0.00036164,30]
[340301858,1729009876889,-536.30805248,0.00036164,30]
[340301859,1729009876900,-500.0,0.00036164,30]
[340301860,1729009876910,-500.0,0.00036164,30]
[340301861,1729009876919,-500.0,0.00036164,30]
[340301862,1729009876928,-500.0,0.00036164,30]
[340301863,1729009876938,-500.0,0.00036164,30]
[340301864,1729009876947,-663.08,0.00036164,30]
[340301865,1729009876956,-500.0,0.00036164,30]
[340301866,1729009876966,-500.0,0.00036164,30]
[340301867,1729009876976,-500.0,0.00036164,30]
[340301868,1729009876985,-508.854773,0.00036164,30]
[340301869,1729009876996,-290.43022294,0.00036164,30]
[340301870,1729009877006,-500.0,0.00036164,30]
[340301871,1729009877015,-500.0,0.00036164,30]
[340301872,1729009877025,-500.0,0.00036164,30]
[340301873,1729009877034,-500.0,0.00036164,30]
[340301874,1729009877044,-500.0,0.00036164,30]
[340301875,1729009877054,-525.32,0.00036164,30]
[340301876,1729009877064,-500.0,0.00036164,30]
[340301877,1729009877075,-500.0,0.00036164,30]
[340301878,1729009877084,-500.0,0.00036164,30]
[340301879,1729009877096,-500.0,0.00036164,30]
[340301880,1729009877112,-500.0,0.00036164,30]
[340301881,1729009877125,-500.0,0.00036164,30]
[340301882,1729009877135,-500.0,0.00036164,30]
[340301883,1729009877145,-500.0,0.00036164,30]
[340301884,1729009877155,-500.0,0.00036164,30]
[340301885,1729009877167,-509.68882428,0.00036164,30]
[340301886,1729009877177,-500.0,0.00036164,30]
[340301887,1729009877187,-500.0,0.00036164,30]
[340301888,1729009877198,-500.0,0.00036164,30]
[340301889,1729009877209,-541.5011667,0.00036164,30]
[340301890,1729009877219,-201.59595877,0.00036164,30]
[340301891,1729009877230,-500.0,0.00036164,30]
[340301892,1729009877240,-500.0,0.00036164,30]
[340301893,1729009877250,-756.39,0.00036164,30]
[340301894,1729009877260,-500.0,0.00036164,30]
[340301895,1729009877270,-554.41,0.00036164,30]
[340301896,1729009877279,-1171.6,0.00036164,30]
[340301897,1729009877289,-500.0,0.00036164,30]
[340301898,1729009877299,-500.0,0.00036164,30]
[340301899,1729009877310,-500.0,0.00036164,30]
[340301900,1729009877322,-500.0,0.00036164,30]
[340301901,1729009877332,-500.0,0.00036164,30]
[340301902,1729009877341,-531.2340984,0.00036164,30]
[340301903,1729009877351,-500.0,0.00036164,30]
[340301904,1729009877366,-553.39,0.00036164,30]
[340301905,1729009877377,-590.43536226,0.00036164,30]
[340301906,1729009877387,-500.0,0.00036164,30]
[340301907,1729009877397,-947.4,0.00036164,30]
[340301908,1729009877406,-500.0,0.00036164,30]
[340301909,1729009877416,-500.0,0.00036164,30]
[340301910,1729009877426,-376.50751731,0.00036164,30]
[340301911,1729009877435,-500.0,0.00036164,30]
[340301912,1729009877445,-500.0,0.00036164,30]
[340301913,1729009877455,-500.0,0.00036164,30]
[340301914,1729009877464,-500.0,0.00036164,30]
[340301915,1729009877474,-500.0,0.00036164,30]
[340301916,1729009877484,-500.0,0.00036164,30]
[340301917,1729009877494,-500.0,0.00036164,30]
[340301918,1729009877504,-500.0,0.00036164,30]
[340301919,1729009877514,-500.0,0.00036164,30]
[340301920,1729009877523,-500.0,0.00036164,30]
[340301921,1729009877533,-500.0,0.00036164,30]
[340301922,1729009877543,-500.0,0.00036164,30]
[340301923,1729009877553,-500.0,0.00036164,30]
[340301924,1729009877563,-508.38228215,0.00036164,30]
[340301925,1729009877573,-500.0,0.00036164,30]
[340301926,1729009877583,-513.31,0.00036164,30]
[340301927,1729009877593,-500.0,0.00036164,30]
[340301928,1729009877603,-500.0,0.00036164,30]
[340301929,1729009877617,-9763.37,0.00036164,30]
[340301930,1729009877627,-488.00257348,0.00036164,30]
[340301931,1729009877636,-500.0,0.00036164,30]
[340301932,1729009877646,-500.0,0.00036164,30]
[340301933,1729009877655,-507.12004787,0.00036164,30]
[340301934,1729009877665,-500.0,0.00036164,30]
[340301935,1729009877675,-527.49004666,0.00036164,30]
[340301936,1729009877685,-500.0,0.00036164,30]
[340301937,1729009877695,-500.0,0.00036164,2]
[340301938,1729009877704,-500.0,0.00036164,30]
[340301939,1729009877714,-500.0,0.00036164,30]
[340301940,1729009877724,-500.0,0.00036164,30]
[340301941,1729009877734,-718.5,0.00036164,30]
[340301942,1729009877744,-606.02,0.00036164,30]
[340301943,1729009877753,-2000.0,0.00036164,30]
[340301944,1729009877763,-500.0,0.00036164,30]
[340301945,1729009877773,-504.45889426,0.00036164,30]
[340301946,1729009877784,-500.0,0.00036164,30]
[340301947,1729009877794,-500.0,0.00036164,30]
[340301948,1729009877804,-174.306345,0.00036164,30]
[340301949,1729009877814,-2997.52,0.00036164,21]
[340301950,1729009877823,-500.0,0.00036164,30]
[340301951,1729009877834,-500.0,0.00036164,30]
[340301952,1729009877843,-152.15280849,0.00036173,5]
[340301953,1729009877853,-1180.5648375,0.00036196,5]
[340301954,1729009877865,-259.72327424,0.0003624,2]
[340301955,1729009877875,-484.0,0.00036247,2]
[340301956,1729009877884,-206.844331,0.00036277,2]
[340301957,1729009877893,-219.086254,0.00036277,2]
[340301958,1729009877903,-1500.0,0.000364,2]
[340301959,1729009877913,-223.994,0.00036532,7]
[340301960,1729009877923,-150.0,0.000366,26]
[340301961,1729009877934,-453.0,0.0003666,120]
[340301962,1729009877945,-1500.0,0.00036667,2]
[340301963,1729009877955,-264.158302,0.000367,2]
[340301964,1729009877966,-500.0,0.00036712,2]
[340301965,1729009877976,-201.66470934,0.00036712,30]
[340301966,1729009877985,-500.0,0.00036712,30]
[340301967,1729009877994,-500.0,0.00036712,30]
[340301968,1729009878004,-500.0,0.00036712,30]
[340301969,1729009878014,-553.45338591,0.00036712,30]
[340301970,1729009878023,-500.0,0.00036712,30]
[340301971,1729009878033,-1269.68,0.00036712,30]
[340301972,1729009878043,-500.0,0.00036712,30]
[340301973,1729009878052,-500.0,0.00036712,30]
[340301974,1729009878062,-500.0,0.00036712,30]
[340301975,1729009878072,-500.0,0.00036712,30]
[340301976,1729009878082,-500.0,0.00036712,30]
[340301977,1729009878091,-500.0,0.00036712,30]
[340301978,1729009878102,-500.0,0.00036712,30]
[340301979,1729009878116,-528.91949571,0.00036712,30]
[340301980,1729009878128,-957.5,0.00036712,30]
[340301981,1729009878137,-506.38953671,0.00036712,30]
[340301982,1729009878147,-946.36,0.00036712,30]
[340301983,1729009878157,-519.6,0.00036712,30]
[340301984,1729009878166,-500.0,0.00036712,30]
[340301985,1729009878177,-500.0,0.00036712,30]
[340301986,1729009878187,-500.0,0.00036712,30]
[340301987,1729009878199,-365.70824352,0.00036712,30]
[340301988,1729009878208,-500.0,0.00036712,30]
[340301989,1729009878217,-179.52945785,0.00036712,30]
[340301990,1729009878226,-500.0,0.00036712,30]
[340301991,1729009878235,-312.79643299,0.00036712,30]
[340301992,1729009878246,-177.38829621,0.00036712,7]
[340301993,1729009878256,-505.9125865,0.00036712,30]
[340301994,1729009878265,-500.0,0.00036712,30]
[340301995,1729009878275,-500.0,0.00036712,30]
[340301996,1729009878285,-500.0,0.00036712,30]
[340301997,1729009878296,-500.0,0.00036712,30]
[340301998,1729009878305,-500.0,0.00036712,30]
[340301999,1729009878315,-500.0,0.00036712,30]
[340302000,1729009878324,-500.0,0.00036712,30]
[340302001,1729009878333,-500.0,0.00036712,30]
[340302002,1729009878345,-500.0,0.00036712,30]
[340302003,1729009878354,-505.55783638,0.00036712,30]
[340302004,1729009878366,-573.04012626,0.00036712,30]
[340302005,1729009878375,-500.0,0.00036712,30]
[340302006,1729009878385,-500.0,0.00036712,2]
[340302007,1729009878395,-500.0,0.00036712,30]
[340302008,1729009878406,-500.0,0.00036712,30]
[340302009,1729009878416,-502.99208608,0.00036712,30]
[340302010,1729009878425,-500.0,0.00036712,30]
[340302011,1729009878434,-500.0,0.00036712,30]
[340302012,1729009878444,-510.25327872,0.00036712,30]
[340302013,1729009878453,-500.0,0.00036712,30]
[340302014,1729009878463,-500.0,0.00036712,30]
[340302015,1729009878472,-500.0,0.00036712,30]
[340302016,1729009878482,-500.0,0.00036712,30]
[340302017,1729009878491,-500.0,0.00036712,30]
[340302018,1729009878501,-500.0,0.00036712,30]
[340302019,1729009878510,-500.0,0.00036712,30]
[340302020,1729009878520,-500.0,0.00036712,30]
[340302021,1729009878529,-527.76601617,0.00036712,30]
[340302022,1729009878539,-506.58760425,0.00036712,30]
[340302023,1729009878549,-1000.0,0.00036712,30]
[340302024,1729009878558,-514.99462999,0.00036712,30]
[340302025,1729009878568,-500.0,0.00036712,30]
[340302026,1729009878578,-500.0,0.00036712,30]
[340302027,1729009878587,-354.14990548,0.00036712,30]
[340302028,1729009878596,-500.0,0.00036712,30]
[340302029,1729009878606,-517.10898008,0.00036712,30]
[340302030,1729009878618,-502.98588895,0.00036712,30]
[340302031,1729009878627,-506.92573757,0.00036712,30]
[340302032,1729009878636,-504.19641901,0.00036712,30]
[340302033,1729009878645,-582.38625881,0.00036712,30]
[340302034,1729009878655,-500.0,0.00036712,30]
[340302035,1729009878664,-500.0,0.00036712,30]
[340302036,1729009878674,-500.0,0.00036712,30]
[340302037,1729009878683,-500.0,0.00036712,30]
[340302038,1729009878697,-500.0,0.00036712,30]
[340302039,1729009878707,-500.0,0.00036712,30]
[340302040,1729009878718,-513.36910821,0.00036712,30]
[340302041,1729009878886,-500.0,0.00036712,30]
[340302042,1729009878897,-520.28358245,0.00036712,30]
[340302043,1729009878907,-500.0,0.00036712,30]
[340302044,1729009878916,-514.09064292,0.00036712,30]
[340302045,1729009878926,-500.0,0.00036712,30]
[340302046,1729009878935,-500.0,0.00036712,30]
[340302047,1729009878945,-500.0,0.00036712,30]
[340302048,1729009878954,-502.96260909,0.00036712,30]
[340302049,1729009878963,-500.0,0.00036712,30]
[340302050,1729009878973,-552.87005106,0.00036712,30]
[340302051,1729009878982,-500.0,0.00036712,30]
[340302052,1729009878992,-500.0,0.00036712,30]
[340302053,1729009879001,-500.0,0.00036712,30]
[340302054,1729009879011,-727.25,0.00036712,30]
[340302055,1729009879021,-500.0,0.00036712,30]
[340302056,1729009879031,-503.96791377,0.00036712,30]
[340302057,1729009879041,-502.25053656,0.00036712,30]
[340302058,1729009879052,-511.34867797,0.00036712,30]
[340302059,1729009879062,-523.3145832,0.00036712,30]
[340302060,1729009879071,-834.78,0.00036712,30]
[340302061,1729009879080,-548.13,0.00036712,30]
[340302062,1729009879090,-509.67189215,0.00036712,30]
[340302063,1729009879099,-500.0,0.00036712,30]
[340302064,1729009879110,-500.0,0.00036712,30]
[340302065,1729009879120,-502.5,0.00036712,30]
[340302066,1729009879133,-500.0,0.00036712,30]
[340302067,1729009879142,-596.53137446,0.00036712,30]
[340302068,1729009879151,-500.0,0.00036712,30]
[340302069,1729009879161,-500.0,0.00036712,30]
[340302070,1729009879170,-500.0,0.00036712,30]
[340302071,1729009879179,-505.24708791,0.00036712,30]
[340302072,1729009879189,-500.0,0.00036712,30]
[340302073,1729009879199,-505.0086853,0.00036712,30]
[340302074,1729009879210,-500.0,0.00036712,30]
[340302075,1729009879220,-332.78216704,0.00036712,30]
[340302076,1729009879229,-500.0,0.00036712,30]
[340302077,1729009879239,-514.27713212,0.00036712,30]
[340302078,1729009879249,-502.85122104,0.00036712,30]
[340302079,1729009879258,-500.0,0.00036712,30]
[340302080,1729009879272,-517.98323742,0.00036712,30]
[340302081,1729009879282,-500.0,0.00036712,30]
[340302082,1729009879291,-595.23350764,0.00036712,30]
[340302083,1729009879302,-500.0,0.00036712,30]
[340302084,1729009879311,-500.0,0.00036712,30]
[340302085,1729009879321,-505.73003372,0.00036712,30]
[340302086,1729009879331,-500.0,0.00036712,30]
[340302087,1729009879342,-500.0,0.00036712,30]
[340302088,1729009879352,-500.0,0.00036712,30]
[340302089,1729009879367,-500.0,0.00036712,30]
[340302090,1729009879377,-506.67527057,0.00036712,30]
[340302091,1729009879387,-500.0,0.00036712,30]
[340302092,1729009879397,-1164.43,0.00036712,30]
[340302093,1729009879407,-500.0,0.00036712,30]
[340302094,1729009879417,-500.0,0.00036712,30]
[340302095,1729009879427,-500.0,0.00036712,30]
[340302096,1729009879437,-346.00491064,0.00036712,30]
[340302097,1729009879446,-504.05995049,0.00036712,30]
[340302098,1729009879456,-520.86954179,0.00036712,30]
[340302099,1729009879466,-514.63771818,0.00036712,30]
[340302100,1729009879476,-500.0,0.00036712,30]
[340302101,1729009879486,-500.0,0.00036712,30]
[340302102,1729009879496,-500.0,0.00036712,30]
[340302103,1729009879506,-500.0,0.00036712,30]
[340302104,1729009879516,-500.0,0.00036712,30]
[340302105,1729009879525,-500.0,0.00036712,30]
[340302106,1729009879534,-500.0,0.00036712,30]
[340302107,1729009879544,-500.0,0.00036712,7]
[340302108,1729009879553,-500.0,0.00036712,30]
[340302109,1729009879563,-500.0,0.00036712,30]
[340302110,1729009879572,-500.0,0.00036712,30]
[340302111,1729009879582,-500.0,0.00036712,30]
[340302112,1729009879591,-500.0,0.00036712,30]
[340302113,1729009879602,-500.0,0.00036712,30]
[340302114,1729009879613,-500.0,0.00036712,30]
[340302115,1729009879623,-500.0,0.00036712,30]
[340302116,1729009879632,-411.95191955,0.00036712,30]
[340302117,1729009879643,-505.66930629,0.00036712,30]
[340302118,1729009879653,-500.0,0.00036712,30]
[340302119,1729009879662,-500.0,0.00036712,30]
[340302120,1729009879672,-524.4872307,0.00036712,30]
[340302121,1729009879682,-375.58871333,0.00036712,30]
[340302122,1729009879692,-498.88088358,0.00036712,30]
[340302123,1729009879702,-500.0,0.00036712,30]
[340302124,1729009879713,-500.0,0.00036712,30]
[340302125,1729009879722,-500.0,0.00036712,30]
[340302126,1729009879732,-500.0,0.00036712,30]
[340302127,1729009879742,-500.0,0.00036712,30]
[340302128,1729009879752,-569.67097938,0.00036712,30]
[340302129,1729009879762,-500.0,0.00036712,30]
[340302130,1729009879772,-632.25,0.00036712,30]
[340302131,1729009879782,-507.07549765,0.00036712,30]
[340302132,1729009879792,-504.71295914,0.00036712,30]
[340302133,1729009879802,-500.0,0.00036712,30]
[340302134,1729009879811,-506.27462892,0.00036712,30]
[340302135,1729009879821,-500.0,0.00036712,30]
[340302136,1729009879830,-500.0,0.00036712,30]
[340302137,1729009879840,-500.0,0.00036712,30]
[340302138,1729009879850,-597.00266485,0.00036712,30]
[340302139,1729009879863,-500.0,0.00036712,30]
[340302140,1729009879873,-500.0,0.00036712,30]
[340302141,1729009879882,-500.0,0.00036712,30]
[340302142,1729009879891,-500.0,0.00036712,30]
[340302143,1729009879901,-500.0,0.00036712,7]
[340302144,1729009879911,-500.0,0.00036712,30]
[340302145,1729009879920,-500.0,0.00036712,30]
[340302146,1729009879930,-500.0,0.00036712,30]
[340302147,1729009879939,-504.84211268,0.00036712,30]
[340302148,1729009879949,-500.0,0.00036712,30]
[340302149,1729009879958,-525.71267477,0.00036712,30]
[340302150,1729009879969,-500.0,0.00036712,30]
[340302151,1729009879979,-500.0,0.00036712,30]
[340302152,1729009879989,-500.0,0.00036712,30]
[340302153,1729009880000,-500.0,0.00036712,30]
[340302154,1729009880011,-500.0,0.00036712,30]
[340302155,1729009880021,-500.0,0.00036712,30]
[340302156,1729009880031,-500.0,0.00036712,30]
[340302157,1729009880040,-500.0,0.00036712,30]
[340302158,1729009880049,-500.0,0.00036712,30]